bitfinex/quotes_ETHUSD_20240701
["timestamp","ask_amount","ask_price","bid_price","bid_amount"]
[1719862596238,2.87471,3478.6,3478.5,3.0]
[1719862596437,3.02905851,3478.6,3478.5,3.0]
[1719862598468,3.23560936,3478.6,3477.8,10.29]
[1719862598643,2.64524851,3478.6,3478.0,3.0]
[1719862598844,2.87506,3478.2,3478.0,3.0]
[1719862599245,0.15434078,3478.1,3478.0,3.0]
[1719862600062,0.65434078,3478.1,3478.0,3.0]
[1719862601784,3.52947078,3478.1,3478.0,3.0]
[1719862605960,2.8753,3477.9,3477.7,2.4429]
[1719862606174,0.15428685,3477.8,3477.7,2.4429]
[1719862607184,0.15428685,3477.8,3477.6,3.0]
[1719862607388,0.15428685,3477.8,3477.6,3.72]
[1719862607856,0.30295869,3477.7,3477.1,0.1204189]
[1719862608055,0.49785036,3477.6,3477.1,0.1204189]
[1719862608257,2.87587,3477.3,3477.1,0.1204189]
[1719862608463,2.87587,3477.2,3477.1,0.1204189]
[1719862608670,3.53006899,3477.2,3477.1,0.1204189]
[1719862609124,0.65419899,3477.2,3477.1,0.1204189]
[1719862609406,3.53006899,3477.2,3477.1,0.1204189]
[1719862612230,4.17065589,3477.2,3477.1,0.1204189]
[1719862616809,7.04652589,3477.2,3477.1,0.1204189]
[1719862623294,6.40593899,3477.2,3477.1,0.1204189]
[1719862624353,3.53006899,3477.2,3477.1,0.1204189]
[1719862624944,6.40593899,3477.2,3477.1,0.1204189]
[1719862627136,9.91301424,3477.2,3477.1,0.1204189]
[1719862627399,12.78888424,3477.2,3477.1,0.1204189]
[1719862627697,12.78888424,3477.2,3475.6,8.01563143]
[1719862627698,2.87698,3475.9,3475.6,0.00563143]
[1719862627932,5.75422,3475.7,3475.6,0.00563143]
[1719862628217,0.153687,3475.7,3475.6,0.00563143]
[1719862628572,3.0091,3476.3,3475.6,0.00563143]
[1719862628573,2.87701,3475.9,3475.6,0.00563143]
[1719862628778,0.5,3475.7,3475.6,0.00563143]
[1719862629211,0.6536006,3475.7,3475.6,0.00563143]
[1719862629525,0.6536006,3475.7,3475.6,0.06317228]
[1719862629825,0.6536006,3475.7,3475.6,2.34967228]
[1719862630372,0.6536006,3475.7,3475.6,2.29213143]
[1719862630868,0.6536006,3475.7,3475.6,0.00563143]
[1719862631111,3.5307106,3475.7,3475.6,0.00563143]
[1719862631279,4.17147766,3475.7,3475.6,0.00563143]
[1719862631609,3.5307106,3475.7,3475.6,0.00563143]
[1719862632891,6.4078206,3475.7,3475.6,0.00563143]
[1719862633292,3.5307106,3475.7,3475.6,0.00563143]
[1719862634514,0.6536006,3475.7,3475.6,0.00563143]
[1719862635026,0.5,3475.7,3475.6,0.00563143]
[1719862635347,0.5,3475.7,3475.6,0.55111851]
[1719862635548,2.87617,3476.9,3476.0,2.3917]
[1719862635687,2.87617,3476.9,3476.1,0.05752948]
[1719862635889,0.5,3476.2,3476.1,0.05752948]
[1719862636141,2.87617,3476.9,3476.1,1.00582595]
[1719862636325,9.9393,3477.5,3476.2,0.05752729]
[1719862636326,2.87604,3477.0,3476.2,0.05752729]
[1719862636511,0.5,3476.3,3476.2,0.05752729]
[1719862636921,2.87573,3477.4,3476.6,3.0]
[1719862636922,2.87592,3477.2,3476.6,3.0]
[1719862637330,2.87596,3477.1,3476.6,3.0]
[1719862637494,2.87596,3477.1,3476.1,4.00582595]
[1719862637495,2.87613,3476.9,3476.4,3.0]
[1719862637697,2.87622,3476.8,3476.4,3.0]
[1719862637895,0.5,3476.7,3476.4,3.0]
[1719862638135,0.5,3476.7,3476.1,3.0]
[1719862638345,0.5,3476.7,3476.0,5.3917]
[1719862638526,0.5,3476.7,3476.1,3.0]
[1719862639097,2.8766,3476.4,3476.0,3.0]
[1719862639699,2.87663,3476.3,3475.6,0.00563143]
[1719862639898,2.87663,3476.3,3475.7,3.0]
[1719862640213,2.87687,3476.0,3475.8,3.0]
[1719862640421,2.87687,3476.0,3475.6,3.00563143]
[1719862640608,2.87687,3476.0,3475.7,3.0]
[1719862641598,0.1485159,3475.9,3475.7,3.0]
[1719862642338,3.37679,3476.1,3475.7,3.0]
[1719862642630,0.5,3476.1,3475.7,3.05754005]
[1719862642951,0.1485159,3476.0,3475.7,3.0]
[1719862643702,0.1485159,3476.0,3475.7,3.05753652]
[1719862645235,0.1485159,3476.0,3475.7,3.0]
[1719862645542,0.1485159,3476.0,3475.7,3.60056314]
[1719862645740,0.1485159,3476.0,3475.7,3.0]
[1719862647865,2.87695,3475.9,3475.6,3.00563143]
[1719862648077,3.02541603,3475.9,3475.6,3.00563143]
[1719862648241,2.87704,3475.8,3475.6,3.00563143]
[1719862648431,3.02545462,3475.8,3475.6,3.00563143]
[1719862648741,0.14841462,3475.8,3475.6,3.00563143]
[1719862648948,3.02549462,3475.8,3475.6,3.00563143]
[1719862649526,3.37711,3475.7,3475.6,3.00563143]
[1719862650025,3.52544982,3475.7,3475.6,3.00563143]
[1719862650226,3.52544982,3475.7,3475.6,0.00563143]
[1719862651262,3.51990438,3475.7,3475.0,6.0]
[1719862651855,3.37156456,3475.7,3475.0,6.0]
[1719862652058,0.14824164,3475.6,3475.0,6.0]
[1719862652435,3.37156456,3475.7,3475.0,6.0]
[1719862652837,0.14824164,3475.6,3475.0,6.0]
[1719862653238,3.37156456,3475.7,3475.0,6.0]
[1719862653458,3.37156456,3475.7,3475.1,0.6]
[1719862653649,0.14824164,3475.6,3475.1,0.6]
[1719862653846,0.14824164,3475.6,3475.4,5.3422]
[1719862654065,0.14824164,3475.6,3475.5,0.05753875]
[1719862654275,0.14824164,3475.6,3475.4,5.3422]
[1719862654765,2.87704,3475.8,3475.4,5.3422]
[1719862655065,0.5,3475.7,3475.4,3.0]
[1719862655362,0.64827904,3475.7,3475.4,3.0]
[1719862655747,2.87726,3475.6,3475.4,3.0]
[1719862656133,0.14831957,3475.5,3475.4,3.0]
[1719862656635,2.87739,3475.4,3475.0,6.0]
[1719862656854,2.87739,3475.4,3475.2,3.0]
[1719862657149,0.5,3475.3,3475.0,3.0]
[1719862657347,0.64831957,3475.3,3475.0,3.0]
[1719862658577,2.87755,3475.2,3475.0,3.0]
[1719862658947,0.14831021,3475.1,3474.5,5.3422]
[1719862659141,0.14831021,3475.1,3475.0,3.0]
[1719862659364,2.87755,3475.2,3475.0,3.0]
[1719862659547,0.14831021,3475.1,3475.0,3.0]
[1719862659747,2.87755,3475.2,3475.0,3.0]
[1719862659948,0.5,3475.3,3475.0,3.0]
[1719862660480,0.14831021,3475.2,3475.0,3.0]
[1719862660775,0.5,3475.3,3475.0,3.0]
[1719862661084,0.14827594,3475.2,3475.0,3.0]
[1719862661575,0.5,3475.3,3475.0,3.0]
[1719862661794,0.14827594,3475.1,3475.0,3.0]
[1719862662000,0.5,3475.3,3475.0,3.0]
[1719862662497,0.14827594,3475.2,3475.0,3.0]
[1719862662961,0.5,3475.3,3475.0,3.0]
[1719862663473,0.14827594,3475.2,3475.0,3.0]
[1719862663676,0.5,3475.3,3475.0,3.0]
[1719862663873,0.14827594,3475.1,3475.0,3.0]
[1719862664190,0.5,3475.3,3475.0,3.0]
[1719862664394,0.14827594,3475.1,3475.0,3.0]
[1719862664563,0.5,3475.3,3475.0,3.0]
[1719862664974,0.14827594,3475.2,3475.0,3.0]
[1719862665363,0.5,3475.3,3475.0,3.0]
[1719862665591,0.14827594,3475.1,3475.0,3.0]
[1719862665817,0.5,3475.3,3475.0,3.0]
[1719862666294,0.14827594,3475.2,3475.0,3.0]
[1719862666486,0.5,3475.3,3475.0,3.0]
[1719862666806,0.14827904,3475.1,3475.0,3.0]
[1719862666964,0.5,3475.3,3475.0,3.0]
[1719862667164,0.14827904,3475.1,3475.0,3.0]
[1719862667359,0.5,3475.3,3475.0,3.0]
[1719862667595,0.14827904,3475.1,3475.0,3.3]
[1719862667773,0.5,3475.3,3475.0,3.3]
[1719862667970,0.14827904,3475.1,3475.0,3.0]
[1719862668193,0.5,3475.3,3474.4,3.0]
[1719862668194,3.3775,3475.3,3474.4,3.0]
[1719862668365,0.14827437,3475.1,3474.8,3.0]
[1719862668566,5.23483,3475.2,3474.8,3.0]
[1719862668768,0.14827437,3475.0,3474.8,3.0]
[1719862668992,5.23483,3475.2,3474.8,3.0]
[1719862669167,0.14827437,3474.9,3474.8,3.0]
[1719862669367,2.8777,3475.0,3474.8,3.0]
[1719862669668,0.64827437,3474.9,3474.8,3.0]
[1719862670691,0.14827437,3474.9,3474.8,3.0]
[1719862670890,2.87753,3475.2,3474.8,3.0]
[1719862671094,0.14827437,3474.9,3474.8,3.0]
[1719862671302,2.87753,3475.2,3474.8,3.0]
[1719862671467,0.14827437,3474.9,3474.8,3.0]
[1719862671672,2.8774,3475.4,3474.8,3.0]
[1719862671972,0.14827437,3474.9,3474.8,3.0]
[1719862672168,2.87746,3475.3,3474.8,3.0]
[1719862672369,0.14827437,3474.9,3474.8,3.0]
[1719862672566,2.87724,3475.6,3474.9,2.4893]
[1719862672770,0.5,3475.0,3474.9,2.4893]
[1719862673573,2.87724,3475.6,3474.9,2.4893]
[1719862673776,0.5,3475.2,3474.9,2.54684735]
[1719862674087,0.5,3475.2,3475.0,0.87304626]
[1719862674711,0.5,3475.2,3475.1,0.05754659]
[1719862674932,0.5,3475.2,3475.0,0.93059284]
[1719862676503,5.75348,3476.2,3475.4,3.0]
[1719862676705,0.49808964,3476.1,3475.4,3.0]
[1719862676901,0.5,3475.5,3475.4,3.05754069]
[1719862677102,0.5,3475.5,3475.4,5.35194069]
[1719862677306,2.87657,3476.4,3475.8,3.0]
[1719862677515,0.49808591,3476.3,3475.8,3.0]
[1719862677807,0.5,3475.9,3475.8,3.0]
[1719862678015,0.99808591,3475.9,3475.8,3.0]
[1719862678303,1.14640702,3475.9,3475.8,3.0]
[1719862678502,0.64832111,3475.9,3475.8,3.0]
[1719862678707,1.14640788,3475.9,3475.8,3.0]
[1719862679293,1.14640788,3475.9,3475.8,3.59347079]
[1719862679294,0.64832111,3475.9,3475.8,3.59347079]
[1719862679500,0.5,3475.9,3475.8,3.59347079]
[1719862679694,2.87636,3476.7,3476.2,3.0]
[1719862679883,0.5,3476.3,3476.2,3.0]
[1719862680089,0.99800823,3476.3,3476.2,3.0]
[1719862680788,0.99800823,3476.3,3475.8,3.0]
[1719862680983,1.32045973,3476.3,3475.8,3.0]
[1719862681184,0.4980605,3476.2,3475.8,3.0]
[1719862681413,0.4980605,3476.1,3475.8,3.0]
[1719862681720,0.4980605,3476.2,3475.8,3.0]
[1719862681877,0.5,3476.3,3476.2,3.0]
[1719862682077,0.99806321,3476.3,3476.2,3.0]
[1719862684341,0.5,3476.3,3476.2,3.0]
[1719862684505,0.99806225,3476.3,3476.2,3.0]
[1719862684688,0.5,3476.3,3476.2,3.0]
[1719862684892,0.99806226,3476.3,3476.2,3.0]
[1719862685403,0.99806226,3476.3,3476.2,5.338]
[1719862685728,0.5,3476.3,3476.2,3.0]
[1719862689634,0.5,3476.3,3475.8,3.0]
[1719862690846,0.5,3476.3,3476.2,3.0]
[1719862692826,5.86892,3476.3,3475.8,3.0]
[1719862693195,0.14852055,3476.2,3475.8,3.0]
[1719862693406,5.90206055,3476.2,3475.8,3.0]
[1719862693729,3.02528655,3476.1,3475.8,3.0]
[1719862694101,2.87688,3476.0,3475.8,3.0]
[1719862694297,2.87725,3475.6,3475.4,3.0]
[1719862694501,3.02543695,3475.9,3475.4,3.0]
[1719862694717,0.5,3475.7,3475.4,3.0]
[1719862695341,0.14847225,3475.6,3475.4,3.0]
[1719862696331,0.14847225,3475.6,3474.9,2.4521]
[1719862696498,0.5,3475.7,3475.3,3.0]
[1719862696499,2.87733,3475.5,3475.3,3.0]
[1719862696817,3.02580225,3475.5,3475.3,3.0]
[1719862697026,0.14847225,3475.5,3475.3,3.0]
[1719862697201,0.5,3475.4,3475.3,3.0]
[1719862697693,0.64842395,3475.4,3475.3,3.0]
[1719862700927,3.52578395,3475.4,3475.3,3.0]
[1719862701352,0.64842395,3475.4,3475.3,3.0]
[1719862701664,0.64842395,3475.4,3475.3,3.3]
[1719862702257,0.64842395,3475.4,3475.3,3.0]
[1719862704638,0.64842395,3475.4,3475.0,3.0]
[1719862705204,3.52579395,3475.4,3475.0,3.0]
[1719862705404,3.52579395,3475.4,3474.9,3.0]
[1719862705627,3.52579395,3475.4,3475.0,3.0]
[1719862709439,0.64842395,3475.4,3475.3,3.0]
[1719862709617,0.64842395,3475.4,3475.3,5.3609]
[1719862709820,0.14842395,3475.4,3475.3,5.3609]
[1719862710114,2.87678,3476.2,3475.3,5.3609]
[1719862710318,0.14826036,3475.4,3475.3,5.3609]
[1719862710536,2.87681,3476.1,3475.3,6.30454539]
[1719862710724,0.14826036,3475.4,3475.3,6.30454539]
[1719862710930,2.87681,3476.1,3475.3,6.30454539]
[1719862711136,0.14826036,3475.4,3475.3,6.30454539]
[1719862711435,2.87678,3476.2,3475.3,6.30454539]
[1719862711607,0.5,3475.7,3475.4,0.8384]
[1719862714017,2.87678,3476.2,3475.8,3.0]
[1719862714323,0.5,3475.9,3475.8,3.0]
[1719862716772,0.5,3475.9,3475.8,5.3121]
[1719862716934,0.5,3475.9,3475.8,8.3121]
[1719862717133,0.5,3475.9,3475.8,9.604217]
[1719862717464,2.87621,3476.8,3476.2,3.0]
[1719862717767,0.5,3476.3,3476.2,3.0]
[1719862718243,2.87621,3476.8,3476.2,3.0]
[1719862718244,2.87606,3477.0,3476.2,3.0]
[1719862718570,0.49799219,3476.9,3476.2,3.0]
[1719862718734,0.5,3476.4,3476.2,3.0]
[1719862718921,2.87606,3477.0,3476.2,3.0]
[1719862719119,0.14853769,3476.9,3476.2,3.0]
[1719862719316,0.5,3476.5,3476.3,2.4292]
[1719862719765,0.14853769,3476.4,3476.3,2.4292]
[1719862720062,0.5,3476.5,3476.3,2.4292]
[1719862720259,2.87606,3477.0,3476.3,2.4292]
[1719862720466,0.14853769,3476.4,3476.2,3.0]
[1719862720688,2.87632,3476.7,3476.2,3.0]
[1719862720961,0.14359082,3476.6,3476.2,3.0]
[1719862721170,0.5,3476.3,3476.2,3.0]
[1719862721679,2.87605,3477.0,3476.2,3.0]
[1719862721680,0.5,3476.4,3476.2,3.0]
[1719862722291,0.14365242,3476.3,3476.2,3.0]
[1719862722806,0.5,3476.3,3476.2,3.0]
[1719862723116,0.64365242,3476.3,3476.2,3.0]
[1719862726324,0.5,3476.3,3476.2,3.3]
[1719862727838,2.87598,3477.1,3476.2,3.3]
[1719862727839,2.87621,3476.8,3476.2,3.3]
[1719862728155,0.14363197,3476.3,3476.2,3.0]
[1719862728313,2.87621,3476.8,3476.2,3.0]
[1719862728512,0.5,3476.4,3476.2,3.0]
[1719862730822,0.14363197,3476.3,3476.2,3.0]
[1719862736764,3.02025197,3476.3,3475.8,6.0]
[1719862736931,3.02025197,3476.3,3475.9,3.0]
[1719862737133,3.02025197,3476.3,3475.4,3.15878209]
[1719862737134,3.37694,3476.0,3475.0,2.4566]
[1719862737331,3.37694,3476.0,3475.7,3.0]
[1719862737657,3.02053696,3475.9,3475.7,3.0]
[1719862738867,0.14357696,3475.9,3475.7,3.0]
[1719862740664,3.02053696,3475.9,3475.2,6.0]
[1719862740864,3.66028366,3475.9,3475.2,6.0]
[1719862741183,5.21854,3475.8,3475.2,6.0]
[1719862741508,2.87726,3475.6,3475.2,6.0]
[1719862741795,5.3620069,3475.8,3475.2,6.0]
[1719862741796,2.87704,3475.8,3475.2,6.0]
[1719862742099,0.5,3475.4,3475.2,6.0]
[1719862742415,0.1434669,3475.3,3475.2,6.0]
[1719862742952,2.87713,3475.7,3475.2,6.0]
[1719862743149,0.5,3475.4,3475.2,6.0]
[1719862743689,0.1434669,3475.3,3475.2,6.0]
[1719862744056,2.87713,3475.7,3475.2,6.0]
[1719862744380,0.5,3475.4,3475.2,6.0]
[1719862744568,0.1434669,3475.6,3475.2,7.135107]
[1719862744797,2.87713,3475.7,3475.2,7.135107]
[1719862744798,0.5,3475.4,3475.2,7.135107]
[1719862745401,0.1434669,3475.3,3475.2,7.135107]
[1719862745765,2.87713,3475.7,3475.2,7.135107]
[1719862745949,0.5,3475.4,3475.2,6.0]
[1719862746367,0.1434669,3475.3,3475.2,6.0]
[1719862746903,2.87713,3475.7,3475.2,6.0]
[1719862747053,0.1434669,3475.3,3475.2,6.0]
[1719862747250,2.87713,3475.7,3475.2,6.0]
[1719862747778,0.1434669,3475.6,3475.4,0.722]
[1719862748100,0.5,3475.5,3475.4,0.722]
[1719862748316,0.5,3475.5,3475.2,3.0]
[1719862748455,0.64341816,3475.5,3475.2,3.0]
[1719862748797,3.37734,3475.5,3475.2,3.0]
[1719862749100,0.14341816,3475.4,3475.2,3.0]
[1719862749311,0.14341816,3475.4,3475.3,0.722]
[1719862749657,0.14341816,3475.4,3475.2,3.0]
[1719862749996,0.14341816,3475.4,3475.3,0.722]
[1719862752076,0.14341816,3475.4,3475.2,3.0]
[1719862752256,0.14341816,3475.4,3475.3,0.722]
[1719862753563,0.14341816,3475.4,3475.3,1.39797528]
[1719862753769,0.5,3475.5,3475.3,3.66147528]
[1719862754195,2.87678,3476.1,3475.3,3.66147528]
[1719862754196,0.14335212,3475.4,3475.3,3.66147528]
[1719862754490,2.87678,3476.1,3475.6,3.0]
[1719862754702,2.87678,3476.1,3475.8,0.722]
[1719862754907,0.5,3475.9,3475.8,0.722]
[1719862755376,0.64335212,3475.9,3475.8,0.722]
[1719862757465,0.5,3475.9,3475.8,0.722]
[1719862757663,0.64335212,3475.9,3475.8,0.722]
[1719862758476,0.64335212,3475.9,3475.6,3.0]
[1719862758728,0.64335212,3475.9,3475.7,0.722]
[1719862760413,0.64335212,3475.9,3475.7,0.66568797]
[1719862760584,0.64335212,3475.9,3475.8,3.1921]
[1719862762469,0.14335212,3475.9,3475.8,3.1921]
[1719862762777,0.14339772,3475.9,3475.8,3.1921]
[1719862762963,0.5,3476.0,3475.8,3.1921]
[1719862763163,0.5,3476.0,3475.9,1.21992742]
[1719862766897,0.5,3476.0,3475.9,0.49792742]
[1719862767065,0.5,3476.0,3475.6,3.0]
[1719862767267,0.5,3476.0,3475.6,3.722]
[1719862767999,0.14350938,3475.9,3475.6,3.722]
[1719862768998,0.14350938,3475.9,3475.8,0.722]
[1719862773010,2.87664,3476.3,3475.8,0.722]
[1719862773172,0.14348891,3475.9,3475.8,0.722]
[1719862773502,2.87664,3476.3,3475.8,0.722]
[1719862773705,0.14348891,3475.9,3475.8,0.722]
[1719862774184,2.87664,3476.3,3475.8,0.722]
[1719862774386,0.5,3476.0,3475.8,0.722]
[1719862774777,0.14348891,3475.9,3475.8,0.722]
[1719862775405,2.87664,3476.3,3475.8,0.722]
[1719862775608,0.14348891,3475.9,3475.8,0.722]
[1719862775811,2.87664,3476.3,3475.8,0.722]
[1719862776008,0.14348891,3475.9,3475.8,0.722]
[1719862776316,2.87664,3476.3,3475.8,0.722]
[1719862776483,0.14348891,3475.9,3475.8,0.722]
[1719862776688,2.87664,3476.3,3475.8,0.722]
[1719862776890,0.14348891,3475.9,3475.8,0.722]
[1719862777091,2.87664,3476.3,3475.8,0.722]
[1719862777289,0.14348891,3475.9,3475.8,0.722]
[1719862777497,2.87673,3476.2,3475.8,0.722]
[1719862777800,0.5,3475.9,3475.8,0.722]
[1719862778395,0.64348891,3475.9,3475.8,0.722]
[1719862781993,1.14155611,3475.9,3475.8,0.722]
[1719862782190,4.01850611,3475.9,3475.6,3.722]
[1719862782412,3.52043891,3475.9,3475.6,3.722]
[1719862783092,0.49807599,3475.8,3475.6,3.722]
[1719862783293,3.52043891,3475.9,3475.6,3.722]
[1719862783514,0.14349521,3475.7,3475.6,3.722]
[1719862783724,3.37695,3475.9,3475.6,3.722]
[1719862783926,0.14349521,3475.7,3475.6,3.722]
[1719862784439,0.14349521,3475.7,3475.6,3.0]
[1719862784440,0.49807945,3475.7,3475.6,3.0]
[1719862784608,0.64156366,3475.7,3475.6,3.0]
[1719862784818,3.51867366,3475.7,3475.6,3.0]
[1719862785898,2.87722,3475.6,3475.2,6.0]
[1719862786093,0.4981075,3475.5,3475.2,6.0]
[1719862786292,0.64346061,3475.5,3475.2,6.0]
[1719862789039,0.64346061,3475.5,3475.3,0.722]
[1719862791814,0.5,3475.5,3475.4,2.3191]
[1719862791997,0.5,3475.5,3475.4,5.3191]
[1719862792201,5.75386,3476.0,3475.4,5.3191]
[1719862792402,0.49807823,3475.9,3475.8,0.722]
[1719862792734,0.99807823,3475.9,3475.8,0.722]
[1719862792935,0.99805913,3475.9,3475.8,0.722]
[1719862794031,0.99805913,3475.9,3475.6,0.722]
[1719862794234,0.49805913,3475.8,3475.6,0.722]
[1719862794833,0.5,3475.9,3475.6,0.722]
[1719862795833,0.5,3475.9,3475.6,3.722]
[1719862796040,0.5,3475.9,3475.6,4.62611]
[1719862797321,0.5,3475.9,3475.8,0.722]
[1719862797634,0.99805885,3475.9,3475.8,0.722]
[1719862798043,1.1415179,3475.9,3475.8,0.722]
[1719862798413,1.1415179,3475.9,3475.6,3.90411]
[1719862798641,0.64345905,3475.9,3475.6,3.0]
[1719862800645,0.49811887,3475.8,3475.6,3.0]
[1719862800846,0.64155905,3475.8,3475.6,3.0]
[1719862801141,0.64155905,3475.8,3475.7,0.722]
[1719862801517,0.64155905,3475.8,3475.6,3.0]
[1719862801719,0.64155905,3475.8,3475.6,3.90411]
[1719862802133,3.51862905,3475.8,3475.6,3.90411]
[1719862803450,2.87711,3475.7,3475.6,3.90411]
[1719862803745,3.02052347,3475.7,3475.6,3.90411]
[1719862804334,0.14341347,3475.7,3475.6,3.90411]
[1719862804649,2.87689,3476.0,3475.6,4.62611]
[1719862804849,0.5,3475.8,3475.7,0.87793539]
[1719862805014,2.87695,3475.9,3475.7,1.59993539]
[1719862806129,2.87673,3476.2,3475.7,1.59993539]
[1719862806324,3.37693,3476.0,3475.9,0.722]
[1719862806647,2.87693,3476.0,3475.9,0.722]
[1719862806828,3.37693,3476.0,3475.9,0.722]
[1719862807949,2.87701,3475.9,3475.6,3.0]
[1719862808151,2.832093,3475.9,3475.4,3.0]
[1719862808352,2.87746,3475.3,3475.2,3.0]
[1719862808949,2.87746,3475.3,3475.0,3.0]
[1719862809137,2.87755,3475.2,3475.0,3.0]
[1719862809336,2.87755,3475.2,3475.1,3.0]
[1719862809521,2.87755,3475.2,3475.1,3.722]
[1719862810454,2.87755,3475.2,3474.9,3.0]
[1719862812154,2.87755,3475.2,3474.9,3.722]
[1719862812341,2.87769,3475.1,3474.9,3.0]
[1719862812655,2.87769,3475.1,3474.9,3.722]
[1719862812852,2.87755,3475.2,3474.9,4.3267]
[1719862813148,3.37755,3475.2,3475.1,0.722]
[1719862813357,2.87755,3475.2,3475.1,0.722]
[1719862813954,3.37755,3475.2,3475.1,0.722]
[1719862814655,0.5,3475.2,3475.1,0.722]
[1719862814855,0.5,3475.2,3475.1,3.43592502]
[1719862815360,2.87724,3475.6,3475.3,3.0]
[1719862815554,2.87715,3475.7,3475.3,3.722]
[1719862815761,0.5,3475.4,3475.3,3.722]
[1719862816063,2.87715,3475.7,3475.3,3.722]
[1719862816266,2.87715,3475.7,3475.3,3.0]
[1719862816267,3.37736,3475.4,3475.3,3.0]
[1719862816441,6.25472,3475.4,3475.3,3.0]
[1719862819076,2.8776,3475.2,3474.9,3.0]
[1719862819633,2.87762,3475.1,3474.9,3.0]
[1719862820268,2.87792,3474.8,3474.7,3.0]
[1719862820475,2.87792,3474.8,3474.7,6.0]
[1719862820774,2.87792,3474.8,3474.7,6.722]
[1719862821737,2.87792,3474.8,3473.7,0.1204189]
[1719862821738,5.29712,3474.8,3473.7,0.1204189]
[1719862821944,2.87858,3474.0,3473.7,0.1204189]
[1719862822165,2.87867,3473.9,3473.7,0.1204189]
[1719862822371,2.87869,3473.8,3473.7,0.1204189]
[1719862822871,3.01715183,3473.8,3473.7,0.1204189]
[1719862823662,6.39584183,3473.8,3473.7,0.1204189]
[1719862823874,7.27734601,3473.8,3473.7,0.1204189]
[1719862824248,6.39584183,3473.8,3473.7,0.1204189]
[1719862825150,9.27453183,3473.8,3473.7,0.1204189]
[1719862826159,9.27453183,3473.8,3473.0,10.0]
[1719862826160,3.032,3473.7,3473.0,9.5]
[1719862826370,2.87927,3473.1,3473.0,9.5]
[1719862826570,2.87891,3473.6,3473.0,9.5]
[1719862826571,2.87919,3473.2,3473.0,9.5]
[1719862826743,0.63798029,3473.1,3473.0,9.5]
[1719862826940,3.51725029,3473.1,3473.0,9.5]
[1719862827763,0.63798029,3473.1,3473.0,9.5]
[1719862830566,0.13798029,3473.1,3473.0,9.5]
[1719862831546,5.89652029,3473.1,3473.0,9.5]
[1719862831844,5.95037113,3473.1,3473.0,9.5]
[1719862832073,7.04540824,3473.1,3473.0,9.5]
[1719862833359,6.45037113,3473.1,3473.0,9.5]
[1719862835043,0.69183113,3473.1,3473.0,9.5]
[1719862835351,0.5,3473.1,3473.0,9.5]
[1719862835747,0.69171302,3473.1,3473.0,9.5]
[1719862837058,0.5,3473.1,3473.0,9.5]
[1719862837452,2.87879,3473.7,3473.0,12.5]
[1719862837673,0.5,3473.4,3473.1,0.05757747]
[1719862837861,2.87863,3473.9,3473.1,1.79257747]
[1719862838371,0.5,3473.6,3473.1,1.79257747]
[1719862838569,0.5,3473.6,3473.2,3.0]
[1719862838748,0.5,3473.7,3473.3,0.05757459]
[1719862839352,0.5,3473.7,3473.6,3.0]
[1719862839576,0.5,3473.7,3473.6,3.0575695]
[1719862839771,2.87829,3474.3,3473.6,3.0575695]
[1719862840486,0.5,3474.0,3473.6,3.0575695]
[1719862840674,0.5,3474.0,3473.6,4.11261445]
[1719862842401,0.5,3474.0,3473.6,4.05504495]
[1719862842565,0.5,3474.0,3473.2,3.0]
[1719862842779,0.5,3474.0,3473.3,3.0]
[1719862843058,0.19197754,3473.9,3473.3,5.87907]
[1719862843467,0.5,3473.9,3473.3,5.87907]
[1719862843667,0.5,3473.9,3473.4,4.054842]
[1719862843867,2.87836,3474.2,3473.4,4.054842]
[1719862844072,0.5,3473.9,3473.4,1.175832]
[1719862844511,0.5,3473.9,3473.4,4.054822]
[1719862845396,2.87828,3474.3,3473.4,4.054822]
[1719862845780,0.5,3474.0,3473.4,4.054822]
[1719862845981,0.5,3474.0,3473.5,0.60621339]
[1719862846396,0.5,3474.0,3473.5,3.48512339]
[1719862846617,0.5,3474.0,3473.7,1.735]
[1719862846780,2.87783,3474.9,3473.9,2.87854]
[1719862847139,0.5,3474.5,3474.1,3.0]
[1719862847277,0.5,3474.5,3474.1,3.05756158]
[1719862847479,0.18969825,3474.4,3474.1,6.82959174]
[1719862847802,2.87764,3475.1,3474.2,3.0]
[1719862847990,2.87771,3475.0,3474.2,3.05755992]
[1719862848179,0.5,3474.6,3474.2,3.05755992]
[1719862848607,0.5,3474.6,3474.3,0.05756005]
[1719862848774,0.18969982,3474.5,3474.3,0.05756005]
[1719862848980,0.5,3474.6,3474.3,0.05756005]
[1719862849295,2.87748,3475.3,3474.3,0.05756005]
[1719862849522,0.18974074,3474.5,3474.3,2.93581005]
[1719862849683,0.5,3474.6,3474.4,5.21379]
[1719862849884,0.5,3474.6,3474.4,5.27134683]
[1719862850083,2.87737,3475.4,3474.4,5.27134683]
[1719862850399,0.18974074,3474.5,3474.4,5.27134683]
[1719862850709,2.87745,3475.3,3474.4,8.27134683]
[1719862850904,0.18977851,3474.5,3474.4,5.27134683]
[1719862851082,3.687096,3475.3,3474.4,5.27134683]
[1719862851083,3.687096,3475.3,3474.4,8.27134683]
[1719862851284,0.18978008,3474.5,3474.4,5.27134683]
[1719862851631,3.687096,3475.3,3474.4,8.27134683]